[Event "*** SCC Grand Prix: Titled Tuesday Blitz"]
[Site "Chess.com"]
[Date "2020.07.21"]
[Round "1"]
[White "Man-Chuk"]
[Black "eightbyeightchess"]
[Result "1-0"]
[WhiteElo "2839"]
[BlackElo "2418"]
[TimeControl "180+1"]
[EndTime "10:09:03 PDT"]
[Termination "Man-Chuk won on time"]

1. e4 {[%clk 0:02:55.7]} 1... d5 {[%clk 0:02:55.7]} 2. exd5 {[%clk 0:02:54.8]}
2... Nf6 {[%clk 0:02:56.1]} 3. d4 {[%clk 0:02:53.4]} 3... Bg4 {[%clk 0:02:55.8]}
4. Bb5+ {[%clk 0:02:34.1]} 4... c6 {[%clk 0:02:24.6]} 5. dxc6 {[%clk 0:02:28]}
5... Nxc6 {[%clk 0:02:09]} 6. f3 {[%clk 0:02:18.2]} 6... Bf5 {[%clk 0:02:08.9]}
7. Ne2 {[%clk 0:02:12.1]} 7... e6 {[%clk 0:02:09]} 8. O-O {[%clk 0:02:04.9]}
8... Bd6 {[%clk 0:02:02.6]} 9. c3 {[%clk 0:01:56.3]} 9... h6 {[%clk 0:02:00.4]}
10. Bf4 {[%clk 0:01:50.7]} 10... O-O {[%clk 0:01:57.7]} 11. Bxd6 {[%clk
0:01:37.1]} 11... Qxd6 {[%clk 0:01:58.6]} 12. Nd2 {[%clk 0:01:37.3]} 12... Nd5
{[%clk 0:01:51.7]} 13. Nc4 {[%clk 0:01:33.4]} 13... Qc7 {[%clk 0:01:51.7]} 14.
Qd2 {[%clk 0:01:33]} 14... Rfd8 {[%clk 0:01:47.3]} 15. Ne3 {[%clk 0:01:27.1]}
15... Nxe3 {[%clk 0:01:41.8]} 16. Qxe3 {[%clk 0:01:28]} 16... Ne7 {[%clk
0:01:41.3]} 17. Bd3 {[%clk 0:01:18.5]} 17... Bxd3 {[%clk 0:01:19.1]} 18. Qxd3
{[%clk 0:01:19.4]} 18... e5 {[%clk 0:01:19.7]} 19. Rad1 {[%clk 0:01:17.1]} 19...
exd4 {[%clk 0:01:19.3]} 20. Nxd4 {[%clk 0:01:14.7]} 20... a6 {[%clk 0:01:16.7]}
21. Rfe1 {[%clk 0:01:13.4]} 21... Ng6 {[%clk 0:01:09]} 22. Kh1 {[%clk
0:01:09.5]} 22... b5 {[%clk 0:01:07.6]} 23. a3 {[%clk 0:01:08.9]} 23... Rd5
{[%clk 0:00:56.2]} 24. g3 {[%clk 0:00:53.9]} 24... Rad8 {[%clk 0:00:52.2]} 25.
Qe3 {[%clk 0:00:51]} 25... a5 {[%clk 0:00:40]} 26. Qe2 {[%clk 0:00:44.6]} 26...
b4 {[%clk 0:00:38.9]} 27. axb4 {[%clk 0:00:43]} 27... axb4 {[%clk 0:00:39.3]}
28. Nb5 {[%clk 0:00:35.7]} 28... Qb7 {[%clk 0:00:38.5]} 29. Rxd5 {[%clk
0:00:35]} 29... Rxd5 {[%clk 0:00:32.7]} 30. Nd4 {[%clk 0:00:33.6]} 30... Ne5
{[%clk 0:00:19.7]} 31. Qe4 {[%clk 0:00:32.7]} 31... bxc3 {[%clk 0:00:12.7]} 32.
bxc3 {[%clk 0:00:33.6]} 32... Nc4 {[%clk 0:00:08.4]} 33. Re2 {[%clk 0:00:33.9]}
33... Qd7 {[%clk 0:00:07.9]} 34. Kg2 {[%clk 0:00:31.8]} 34... g6 {[%clk
0:00:06.8]} 35. Qe8+ {[%clk 0:00:28.8]} 35... Qxe8 {[%clk 0:00:06.3]} 36. Rxe8+
{[%clk 0:00:29.7]} 36... Kg7 {[%clk 0:00:06.8]} 37. Kf2 {[%clk 0:00:30.6]} 37...
h5 {[%clk 0:00:06.7]} 38. h4 {[%clk 0:00:30.2]} 38... Nd6 {[%clk 0:00:07]} 39.
Re7 {[%clk 0:00:25.9]} 39... Rc5 {[%clk 0:00:07.1]} 40. Ne6+ {[%clk 0:00:26.1]}
40... Kf6 {[%clk 0:00:07]} 41. Nxc5 {[%clk 0:00:26.4]} 41... Kxe7 {[%clk
0:00:07.2]} 42. Ne4 {[%clk 0:00:26.3]} 42... Nc4 {[%clk 0:00:05.2]} 43. Ke2
{[%clk 0:00:26.1]} 43... Ke6 {[%clk 0:00:05.9]} 44. Kd3 {[%clk 0:00:25.3]} 44...
Ne5+ {[%clk 0:00:06.5]} 45. Ke3 {[%clk 0:00:25.8]} 45... Nc4+ {[%clk 0:00:06.5]}
46. Kd4 {[%clk 0:00:26.3]} 46... Ne5 {[%clk 0:00:07.4]} 47. f4 {[%clk
0:00:21.4]} 47... Nf3+ {[%clk 0:00:07.5]} 48. Ke3 {[%clk 0:00:21.5]} 48... Ne1
{[%clk 0:00:07.9]} 49. Ng5+ {[%clk 0:00:19.6]} 49... Kd5 {[%clk 0:00:06.3]} 50.
Nxf7 {[%clk 0:00:17.8]} 50... Kc4 {[%clk 0:00:06.8]} 51. Ne5+ {[%clk 0:00:17.6]}
51... Kxc3 {[%clk 0:00:06.9]} 52. Nxg6 {[%clk 0:00:17.9]} 52... Kc4 {[%clk
0:00:07.5]} 53. Ke4 {[%clk 0:00:18.1]} 53... Kc5 {[%clk 0:00:06.5]} 54. Kf5
{[%clk 0:00:17]} 54... Kd6 {[%clk 0:00:04.9]} 55. Kg5 {[%clk 0:00:17.1]} 55...
Ke6 {[%clk 0:00:05.5]} 56. Kxh5 {[%clk 0:00:17.2]} 56... Kf6 {[%clk 0:00:05.9]}
57. Ne5 {[%clk 0:00:15]} 57... Ng2 {[%clk 0:00:05.6]} 58. Kg4 {[%clk 0:00:14.2]}
58... Ne3+ {[%clk 0:00:05.3]} 59. Kf3 {[%clk 0:00:14.6]} 59... Nd5 {[%clk
0:00:05.8]} 60. h5 {[%clk 0:00:14.3]} 60... Ne7 {[%clk 0:00:05.6]} 61. g4 {[%clk
0:00:14.6]} 61... Nd5 {[%clk 0:00:05.7]} 62. g5+ {[%clk 0:00:14.8]} 62... Kf5
{[%clk 0:00:06]} 63. Ng6 {[%clk 0:00:13.4]} 63... Nc3 {[%clk 0:00:01.4]} 64.
Nh4+ {[%clk 0:00:13.1]} 64... Ke6 {[%clk 0:00:02.1]} 65. Kg4 {[%clk 0:00:13.6]}
65... Kf7 {[%clk 0:00:03]} 66. f5 {[%clk 0:00:13.7]} 66... Nd5 {[%clk
0:00:03.4]} 67. Ng2 {[%clk 0:00:11.8]} 67... Kg7 {[%clk 0:00:03.3]} 68. Nf4
{[%clk 0:00:11.7]} 68... Ne3+ {[%clk 0:00:03.3]} 69. Kf3 {[%clk 0:00:12]} 69...
Nxf5 {[%clk 0:00:04.2]} 70. Ne6+ {[%clk 0:00:11.2]} 70... Kf7 {[%clk 0:00:04]}
71. Nc5 {[%clk 0:00:08.8]} 71... Ng7 {[%clk 0:00:03.9]} 72. Kg4 {[%clk 0:00:09]}
72... Ne8 {[%clk 0:00:03.3]} 73. g6+ {[%clk 0:00:09.2]} 73... Kf6 {[%clk
0:00:03.4]} 74. Ne4+ {[%clk 0:00:09.5]} 74... Kg7 {[%clk 0:00:03.5]} 75. Kg5
{[%clk 0:00:09.9]} 75... Nc7 {[%clk 0:00:04.2]} 76. h6+ {[%clk 0:00:09.9]} 76...
Kf8 {[%clk 0:00:04]} 77. Nc5 {[%clk 0:00:10]} 77... Kg8 {[%clk 0:00:03]} 78. Nd7
{[%clk 0:00:07.1]} 1-0

[Event "*** SCC Grand Prix: Titled Tuesday Blitz"]
[Site "Chess.com"]
[Date "2020.07.21"]
[Round "1"]
[White "Eliwood44"]
[Black "Muracle"]
[Result "1/2-1/2"]
[WhiteElo "2305"]
[BlackElo "2624"]
[TimeControl "180+1"]
[EndTime "10:09:23 PDT"]
[Termination "Game drawn - insufficient material"]

1. d4 {[%clk 0:03:00.9]} 1... Nf6 {[%clk 0:02:39.4]} 2. Nf3 {[%clk 0:02:58.9]}
2... g6 {[%clk 0:02:39]} 3. e3 {[%clk 0:02:57.9]} 3... Bg7 {[%clk 0:02:38.1]} 4.
Be2 {[%clk 0:02:58.1]} 4... O-O {[%clk 0:02:38.1]} 5. O-O {[%clk 0:02:58.6]}
5... c5 {[%clk 0:02:38.3]} 6. c3 {[%clk 0:02:56]} 6... d5 {[%clk 0:02:37.9]} 7.
dxc5 {[%clk 0:02:52.8]} 7... Qc7 {[%clk 0:02:31.5]} 8. b4 {[%clk 0:02:46.5]}
8... a5 {[%clk 0:02:30.3]} 9. Bb2 {[%clk 0:02:40.1]} 9... Rd8 {[%clk 0:02:14.1]}
10. Nbd2 {[%clk 0:02:34.4]} 10... Ne4 {[%clk 0:02:10.7]} 11. Nd4 {[%clk
0:02:32.8]} 11... Nc6 {[%clk 0:02:02.1]} 12. Nxc6 {[%clk 0:02:26.9]} 12... bxc6
{[%clk 0:01:53.6]} 13. Nxe4 {[%clk 0:02:25]} 13... axb4 {[%clk 0:01:32.9]} 14.
Qc2 {[%clk 0:01:46.9]} 14... Qe5 {[%clk 0:01:12.6]} 15. Rfd1 {[%clk 0:01:32.3]}
15... Bf5 {[%clk 0:01:08.7]} 16. cxb4 {[%clk 0:01:26.6]} 16... Qxb2 {[%clk
0:01:05.4]} 17. Qxb2 {[%clk 0:01:25.1]} 17... Bxb2 {[%clk 0:01:04.9]} 18. Ng3
{[%clk 0:01:14.1]} 18... Bxa1 {[%clk 0:00:51.9]} 19. Nxf5 {[%clk 0:01:12.4]}
19... gxf5 {[%clk 0:00:52.8]} 20. Rxa1 {[%clk 0:01:11.8]} 20... Rdb8 {[%clk
0:00:52.8]} 21. b5 {[%clk 0:01:09.6]} 21... cxb5 {[%clk 0:00:51.8]} 22. c6
{[%clk 0:01:09.9]} 22... Rb6 {[%clk 0:00:50.5]} 23. Rc1 {[%clk 0:01:08.2]} 23...
Rc8 {[%clk 0:00:50.3]} 24. c7 {[%clk 0:01:07.1]} 24... Rb7 {[%clk 0:00:50.2]}
25. Rc5 {[%clk 0:01:07.2]} 25... Rcxc7 {[%clk 0:00:44.4]} 26. Rxd5 {[%clk
0:01:07.2]} 26... Rc1+ {[%clk 0:00:38]} 27. Bf1 {[%clk 0:01:06.8]} 27... e6
{[%clk 0:00:37.4]} 28. Rd8+ {[%clk 0:01:02.2]} 28... Kg7 {[%clk 0:00:36.9]} 29.
g3 {[%clk 0:01:02.8]} 29... Ra7 {[%clk 0:00:36.7]} 30. Rd2 {[%clk 0:01:00.2]}
30... b4 {[%clk 0:00:35.8]} 31. Kg2 {[%clk 0:00:58.7]} 31... Ra1 {[%clk
0:00:34.4]} 32. Bc4 {[%clk 0:00:58.3]} 32... Kf6 {[%clk 0:00:30.6]} 33. h4
{[%clk 0:00:57.8]} 33... Rc7 {[%clk 0:00:29]} 34. Bb3 {[%clk 0:00:57.3]} 34...
Ke5 {[%clk 0:00:26.8]} 35. Rd4 {[%clk 0:00:56.8]} 35... Rb1 {[%clk 0:00:22.2]}
36. Rxb4 {[%clk 0:00:54.6]} 36... Rb2 {[%clk 0:00:22.3]} 37. Rb5+ {[%clk
0:00:49.3]} 37... Kf6 {[%clk 0:00:22.1]} 38. Ra5 {[%clk 0:00:49.4]} 38... Rd7
{[%clk 0:00:21.4]} 39. Ra4 {[%clk 0:00:44.7]} 39... Rdd2 {[%clk 0:00:19.9]} 40.
Rf4 {[%clk 0:00:44.7]} 40... h5 {[%clk 0:00:19.5]} 41. e4 {[%clk 0:00:42.3]}
41... Ke5 {[%clk 0:00:17.7]} 42. exf5 {[%clk 0:00:41.3]} 42... exf5 {[%clk
0:00:17.1]} 43. Bxf7 {[%clk 0:00:40.9]} 43... Rd4 {[%clk 0:00:12.2]} 44. Rf3
{[%clk 0:00:34.7]} 44... f4 {[%clk 0:00:11.4]} 45. Bxh5 {[%clk 0:00:30.5]} 45...
Rxa2 {[%clk 0:00:09.7]} 46. gxf4+ {[%clk 0:00:18.4]} 46... Rxf4 {[%clk
0:00:10.6]} 47. Kg3 {[%clk 0:00:18.3]} 47... Rd4 {[%clk 0:00:08.3]} 48. Rf8
{[%clk 0:00:15.4]} 48... Ra7 {[%clk 0:00:07.8]} 49. Re8+ {[%clk 0:00:14.1]}
49... Kf6 {[%clk 0:00:07.6]} 50. Rf8+ {[%clk 0:00:13.5]} 50... Kg7 {[%clk
0:00:07.9]} 51. Rf4 {[%clk 0:00:11.7]} 51... Rd3+ {[%clk 0:00:06.4]} 52. Bf3
{[%clk 0:00:11.1]} 52... Kh6 {[%clk 0:00:05.9]} 53. Rf6+ {[%clk 0:00:10.3]}
53... Kh7 {[%clk 0:00:06.3]} 54. Rf4 {[%clk 0:00:10.1]} 54... Rg7+ {[%clk
0:00:05.9]} 55. Rg4 {[%clk 0:00:08.8]} 55... Rf7 {[%clk 0:00:05.2]} 56. Rf4
{[%clk 0:00:08]} 56... Re7 {[%clk 0:00:05.6]} 57. Kg4 {[%clk 0:00:07.8]} 57...
Rd2 {[%clk 0:00:04.7]} 58. Be4+ {[%clk 0:00:07.4]} 58... Kh8 {[%clk 0:00:04.5]}
59. f3 {[%clk 0:00:07.8]} 59... Rg7+ {[%clk 0:00:04.5]} 60. Kh5 {[%clk
0:00:07.5]} 60... Rb2 {[%clk 0:00:04.4]} 61. Rf8+ {[%clk 0:00:07.4]} 61... Rg8
{[%clk 0:00:04.8]} 62. Rxg8+ {[%clk 0:00:06.8]} 62... Kxg8 {[%clk 0:00:05.7]}
63. Kg5 {[%clk 0:00:07.2]} 63... Kg7 {[%clk 0:00:06.1]} 64. f4 {[%clk
0:00:07.1]} 64... Rb5+ {[%clk 0:00:07]} 65. f5 {[%clk 0:00:06.4]} 65... Rb4
{[%clk 0:00:07.4]} 66. Bf3 {[%clk 0:00:05.5]} 66... Rb3 {[%clk 0:00:07.7]} 67.
Bg4 {[%clk 0:00:05.5]} 67... Rb6 {[%clk 0:00:07.9]} 68. h5 {[%clk 0:00:05.7]}
68... Kh7 {[%clk 0:00:08.1]} 69. Bf3 {[%clk 0:00:05.8]} 69... Kg7 {[%clk
0:00:08.4]} 70. Be4 {[%clk 0:00:06.1]} 70... Rb4 {[%clk 0:00:08.1]} 71. Bd3
{[%clk 0:00:04.6]} 71... Rd4 {[%clk 0:00:07.9]} 72. Bc2 {[%clk 0:00:04.7]} 72...
Rd2 {[%clk 0:00:08]} 73. h6+ {[%clk 0:00:03.9]} 73... Kh7 {[%clk 0:00:07.3]} 74.
Be4 {[%clk 0:00:04]} 74... Re2 {[%clk 0:00:07.4]} 75. Bd3 {[%clk 0:00:02.6]}
75... Re3 {[%clk 0:00:07.4]} 76. Bc2 {[%clk 0:00:02.8]} 76... Rg3+ {[%clk
0:00:07.5]} 77. Kf4 {[%clk 0:00:02.6]} 77... Rg2 {[%clk 0:00:07.8]} 78. Be4
{[%clk 0:00:02.2]} 78... Rg8 {[%clk 0:00:07]} 79. Ke5 {[%clk 0:00:01.9]} 79...
Kxh6 {[%clk 0:00:07.2]} 80. Bd5 {[%clk 0:00:01.8]} 80... Re8+ {[%clk 0:00:07.1]}
81. Kf6 {[%clk 0:00:01.9]} 81... Rf8+ {[%clk 0:00:06.9]} 82. Bf7 {[%clk
0:00:02.4]} 82... Kh7 {[%clk 0:00:06.7]} 83. Ke7 {[%clk 0:00:02.5]} 83... Ra8
{[%clk 0:00:06.6]} 84. Be6 {[%clk 0:00:02.5]} 84... Ra7+ {[%clk 0:00:05.6]} 85.
Bd7 {[%clk 0:00:02.8]} 85... Ra6 {[%clk 0:00:05.9]} 86. f6 {[%clk 0:00:03]}
86... Rxf6 {[%clk 0:00:04.6]} 87. Kxf6 {[%clk 0:00:03.9]} 1/2-1/2

[Event "*** SCC Grand Prix: Titled Tuesday Blitz"]
[Site "Chess.com"]
[Date "2020.07.21"]
[Round "1"]
[White "aNaartjieZA"]
[Black "Chopper1905"]
[Result "1/2-1/2"]
[WhiteElo "2452"]
[BlackElo "2903"]
[TimeControl "180+1"]
[EndTime "10:09:47 PDT"]
[Termination "Game drawn by stalemate"]

1. e4 {[%clk 0:03:00.9]} 1... Nc6 {[%clk 0:02:56.3]} 2. Nf3 {[%clk 0:03:00.5]}
2... d6 {[%clk 0:02:55.9]} 3. g3 {[%clk 0:02:59.7]} 3... g6 {[%clk 0:02:55.4]}
4. Bg2 {[%clk 0:02:59.8]} 4... Nf6 {[%clk 0:02:55.1]} 5. d3 {[%clk 0:02:59.5]}
5... Bg7 {[%clk 0:02:55]} 6. O-O {[%clk 0:02:59.7]} 6... O-O {[%clk 0:02:55.1]}
7. c3 {[%clk 0:02:59.1]} 7... Rb8 {[%clk 0:02:50.5]} 8. a4 {[%clk 0:02:56.7]}
8... a6 {[%clk 0:02:50]} 9. Re1 {[%clk 0:02:53.2]} 9... b5 {[%clk 0:02:45.6]}
10. axb5 {[%clk 0:02:52.7]} 10... axb5 {[%clk 0:02:46.5]} 11. d4 {[%clk
0:02:50.7]} 11... d5 {[%clk 0:02:38.4]} 12. exd5 {[%clk 0:02:48.8]} 12... Nxd5
{[%clk 0:02:37.9]} 13. Nbd2 {[%clk 0:02:32.7]} 13... Bb7 {[%clk 0:02:19.4]} 14.
Ne4 {[%clk 0:02:30.5]} 14... Ra8 {[%clk 0:02:19.8]} 15. Rxa8 {[%clk 0:02:26.1]}
15... Bxa8 {[%clk 0:02:18.7]} 16. Nc5 {[%clk 0:02:22.3]} 16... Na5 {[%clk
0:02:00.4]} 17. h4 {[%clk 0:02:11.1]} 17... h6 {[%clk 0:01:52.2]} 18. Ne5 {[%clk
0:02:03.6]} 18... Nc4 {[%clk 0:01:48.8]} 19. Nxc4 {[%clk 0:01:57.5]} 19... bxc4
{[%clk 0:01:49.7]} 20. Qe2 {[%clk 0:01:56.3]} 20... e6 {[%clk 0:01:02.8]} 21. h5
{[%clk 0:01:49.2]} 21... gxh5 {[%clk 0:00:57.8]} 22. Qxh5 {[%clk 0:01:43.9]}
22... Nf6 {[%clk 0:00:55.2]} 23. Qh4 {[%clk 0:01:41.4]} 23... Bxg2 {[%clk
0:00:55.5]} 24. Kxg2 {[%clk 0:01:41.2]} 24... Qd5+ {[%clk 0:00:55.9]} 25. Kg1
{[%clk 0:01:40.2]} 25... Qf5 {[%clk 0:00:51.7]} 26. Bxh6 {[%clk 0:01:34.6]}
26... Bxh6 {[%clk 0:00:47.6]} 27. Qxh6 {[%clk 0:01:34.1]} 27... Qxf2+ {[%clk
0:00:47.8]} 28. Kxf2 {[%clk 0:01:32.2]} 28... Ng4+ {[%clk 0:00:48.4]} 29. Kf3
{[%clk 0:01:32.1]} 29... Nxh6 {[%clk 0:00:49.3]} 30. b3 {[%clk 0:01:27.2]} 30...
cxb3 {[%clk 0:00:43.9]} 31. Rb1 {[%clk 0:01:26.5]} 31... Ra8 {[%clk 0:00:37]}
32. Rxb3 {[%clk 0:01:25.8]} 32... Nf5 {[%clk 0:00:37]} 33. g4 {[%clk 0:01:22.2]}
33... Nd6 {[%clk 0:00:36.5]} 34. Ne4 {[%clk 0:01:21.9]} 34... Ra1 {[%clk
0:00:28.5]} 35. Nxd6 {[%clk 0:01:14.1]} 35... cxd6 {[%clk 0:00:29.4]} 36. Rb6
{[%clk 0:01:14]} 36... d5 {[%clk 0:00:29.4]} 37. Rc6 {[%clk 0:01:14.2]} 37...
Rf1+ {[%clk 0:00:25]} 38. Kg3 {[%clk 0:01:13.4]} 38... Kg7 {[%clk 0:00:23.4]}
39. Rc7 {[%clk 0:01:11.7]} 39... Kg6 {[%clk 0:00:22]} 40. Rc6 {[%clk 0:01:11.5]}
40... Kg5 {[%clk 0:00:21.2]} 41. c4 {[%clk 0:01:10.5]} 41... Rf4 {[%clk
0:00:17.5]} 42. cxd5 {[%clk 0:01:07.4]} 42... exd5 {[%clk 0:00:18.1]} 43. Rc7
{[%clk 0:01:01.9]} 43... Rxg4+ {[%clk 0:00:17.8]} 44. Kf3 {[%clk 0:01:02.1]}
44... Rf4+ {[%clk 0:00:10.1]} 45. Ke3 {[%clk 0:01:02]} 45... Rf5 {[%clk
0:00:11]} 46. Rd7 {[%clk 0:01:00.4]} 46... Kf6 {[%clk 0:00:10.5]} 47. Rd6+
{[%clk 0:00:59.7]} 47... Ke7 {[%clk 0:00:10.7]} 48. Ra6 {[%clk 0:00:59.7]} 48...
Rh5 {[%clk 0:00:11.2]} 49. Kf4 {[%clk 0:00:59.1]} 49... f6 {[%clk 0:00:10]} 50.
Ra7+ {[%clk 0:00:57.6]} 50... Ke6 {[%clk 0:00:10.5]} 51. Ra6+ {[%clk 0:00:57.3]}
51... Kf7 {[%clk 0:00:11.1]} 52. Ra7+ {[%clk 0:00:57.3]} 52... Kg6 {[%clk
0:00:11.6]} 53. Rd7 {[%clk 0:00:56.8]} 53... Rf5+ {[%clk 0:00:11.3]} 54. Ke3
{[%clk 0:00:56.1]} 54... Kg5 {[%clk 0:00:11.4]} 55. Rg7+ {[%clk 0:00:56.1]}
55... Kh4 {[%clk 0:00:11.8]} 56. Rh7+ {[%clk 0:00:55.8]} 56... Kg4 {[%clk
0:00:11.6]} 57. Rg7+ {[%clk 0:00:56]} 57... Rg5 {[%clk 0:00:12.2]} 58. Rd7
{[%clk 0:00:55.6]} 58... Kg3 {[%clk 0:00:11]} 59. Rf7 {[%clk 0:00:55]} 59... f5
{[%clk 0:00:10.9]} 60. Rf8 {[%clk 0:00:54.5]} 60... Kg4 {[%clk 0:00:10.3]} 61.
Rf7 {[%clk 0:00:54.1]} 61... Rg6 {[%clk 0:00:10]} 62. Rd7 {[%clk 0:00:51.5]}
62... f4+ {[%clk 0:00:10.2]} 63. Kf2 {[%clk 0:00:51.7]} 63... Rg5 {[%clk
0:00:10.9]} 64. Rd8 {[%clk 0:00:49.3]} 64... Rf5 {[%clk 0:00:11.1]} 65. Rg8+
{[%clk 0:00:48.6]} 65... Kh5 {[%clk 0:00:11.1]} 66. Kf3 {[%clk 0:00:48.1]} 66...
Kh6 {[%clk 0:00:09.2]} 67. Rg1 {[%clk 0:00:46.6]} 67... Kh7 {[%clk 0:00:09.1]}
68. Re1 {[%clk 0:00:45.4]} 68... Kg6 {[%clk 0:00:09.1]} 69. Re6+ {[%clk
0:00:45.1]} 69... Kg5 {[%clk 0:00:08.2]} 70. Re1 {[%clk 0:00:39.8]} 70... Kf6
{[%clk 0:00:09.1]} 71. Re8 {[%clk 0:00:39.2]} 71... Kf7 {[%clk 0:00:07]} 72. Re1
{[%clk 0:00:38.5]} 72... Kg6 {[%clk 0:00:05.3]} 73. Re6+ {[%clk 0:00:38.2]}
73... Kf7 {[%clk 0:00:05.5]} 74. Re1 {[%clk 0:00:38]} 74... Kf8 {[%clk
0:00:05.8]} 75. Rg1 {[%clk 0:00:34.9]} 75... Ke7 {[%clk 0:00:05.6]} 76. Rg4
{[%clk 0:00:33.4]} 76... Kf6 {[%clk 0:00:04.2]} 77. Rh4 {[%clk 0:00:28.9]} 77...
Kg5 {[%clk 0:00:05.1]} 78. Rg4+ {[%clk 0:00:28.7]} 78... Kf6 {[%clk 0:00:05.4]}
79. Rh4 {[%clk 0:00:28.7]} 79... Kg6 {[%clk 0:00:05.3]} 80. Rxf4 {[%clk
0:00:23.4]} 80... Kg5 {[%clk 0:00:05.2]} 81. Rxf5+ {[%clk 0:00:21.1]} 81... Kxf5
{[%clk 0:00:06.1]} 82. Kf2 {[%clk 0:00:19.6]} 82... Kf4 {[%clk 0:00:05.8]} 83.
Ke1 {[%clk 0:00:17.7]} 83... Ke3 {[%clk 0:00:06.4]} 84. Kd1 {[%clk 0:00:17.5]}
84... Kd3 {[%clk 0:00:07]} 85. Ke1 {[%clk 0:00:17.7]} 85... Kxd4 {[%clk
0:00:07.3]} 86. Kd2 {[%clk 0:00:18]} 86... Ke4 {[%clk 0:00:07.8]} 87. Ke2 {[%clk
0:00:18.1]} 87... Kd4 {[%clk 0:00:08.7]} 88. Kd2 {[%clk 0:00:18.2]} 88... Kc4
{[%clk 0:00:09.6]} 89. Kc2 {[%clk 0:00:18.4]} 89... d4 {[%clk 0:00:10.2]} 90.
Kd2 {[%clk 0:00:18.7]} 90... d3 {[%clk 0:00:11.1]} 91. Kd1 {[%clk 0:00:18.7]}
91... Kd4 {[%clk 0:00:12]} 92. Kd2 {[%clk 0:00:18.8]} 92... Ke4 {[%clk
0:00:12.4]} 93. Kd1 {[%clk 0:00:18.2]} 93... Kd5 {[%clk 0:00:13]} 94. Kd2 {[%clk
0:00:18.2]} 94... Kd4 {[%clk 0:00:13.9]} 95. Kd1 {[%clk 0:00:18.5]} 95... Kc3
{[%clk 0:00:14.8]} 96. Kc1 {[%clk 0:00:18.7]} 96... Kc4 {[%clk 0:00:15.1]} 97.
Kd2 {[%clk 0:00:18]} 97... Kd4 {[%clk 0:00:16]} 98. Kd1 {[%clk 0:00:18.2]} 98...
Ke3 {[%clk 0:00:15.9]} 99. Ke1 {[%clk 0:00:18.3]} 99... d2+ {[%clk 0:00:16.6]}
100. Kd1 {[%clk 0:00:18.6]} 100... Kd3 {[%clk 0:00:17.5]} 1/2-1/2

[Event "*** SCC Grand Prix: Titled Tuesday Blitz"]
[Site "Chess.com"]
[Date "2020.07.21"]
[Round "2"]
[White "Matveev_Vladimir"]
[Black "Sjakkerntobi"]
[Result "1-0"]
[WhiteElo "2669"]
[BlackElo "2421"]
[TimeControl "180+1"]
[EndTime "10:12:40 PDT"]
[Termination "Matveev_Vladimir won by resignation"]

1. d4 {[%clk 0:03:00.9]} 1... e6 {[%clk 0:02:59.8]} 2. c4 {[%clk 0:03:00.9]}
2... d5 {[%clk 0:03:00.1]} 3. Nf3 {[%clk 0:03:00.7]} 3... Nf6 {[%clk 0:03:00.1]}
4. g3 {[%clk 0:03:00.6]} 4... Bb4+ {[%clk 0:02:58.6]} 5. Bd2 {[%clk 0:03:00.4]}
5... Be7 {[%clk 0:02:59]} 6. Bg2 {[%clk 0:03:00.4]} 6... O-O {[%clk 0:02:59.1]}
7. O-O {[%clk 0:03:00.4]} 7... Nbd7 {[%clk 0:02:58.8]} 8. b3 {[%clk 0:02:58.7]}
8... c6 {[%clk 0:02:58.3]} 9. a4 {[%clk 0:02:58.4]} 9... a5 {[%clk 0:02:57.2]}
10. Nc3 {[%clk 0:02:52.6]} 10... b6 {[%clk 0:02:56.8]} 11. cxd5 {[%clk 0:02:52]}
11... cxd5 {[%clk 0:02:55.4]} 12. Nb5 {[%clk 0:02:51.7]} 12... Bb7 {[%clk
0:02:51.9]} 13. Bf4 {[%clk 0:02:51.3]} 13... Nh5 {[%clk 0:02:32.3]} 14. Bc7
{[%clk 0:02:48.9]} 14... Qc8 {[%clk 0:02:27.4]} 15. Rc1 {[%clk 0:02:47.5]} 15...
Ba6 {[%clk 0:01:56.4]} 16. Nd6 {[%clk 0:02:42.8]} 16... Bxd6 {[%clk 0:01:53.2]}
17. Bxd6 {[%clk 0:02:43.7]} 17... Qb7 {[%clk 0:01:54.1]} 18. Rc7 {[%clk
0:02:41.1]} 1-0

[Event "*** SCC Grand Prix: Titled Tuesday Blitz"]
[Site "Chess.com"]
[Date "2020.07.21"]
[Round "2"]
[White "Malysch"]
[Black "Shivagami"]
[Result "1-0"]
[WhiteElo "2445"]
[BlackElo "2225"]
[TimeControl "180+1"]
[EndTime "10:13:20 PDT"]
[Termination "Malysch won by resignation"]

1. d4 {[%clk 0:02:48.6]} 1... Nf6 {[%clk 0:02:58.3]} 2. c4 {[%clk 0:02:47.8]}
2... c5 {[%clk 0:02:56.6]} 3. d5 {[%clk 0:02:46.1]} 3... e6 {[%clk 0:02:56.4]}
4. Nc3 {[%clk 0:02:45.1]} 4... exd5 {[%clk 0:02:56.5]} 5. cxd5 {[%clk 0:02:46]}
5... d6 {[%clk 0:02:56.2]} 6. Nf3 {[%clk 0:02:45.7]} 6... g6 {[%clk 0:02:56.4]}
7. Nd2 {[%clk 0:02:45.4]} 7... a6 {[%clk 0:02:50.6]} 8. a4 {[%clk 0:02:44.4]}
8... Bg7 {[%clk 0:02:47.6]} 9. Nc4 {[%clk 0:02:22.6]} 9... O-O {[%clk
0:02:24.3]} 10. Bf4 {[%clk 0:02:21.5]} 10... Ne8 {[%clk 0:02:23.9]} 11. Qd2
{[%clk 0:02:21.3]} 11... Bf6 {[%clk 0:02:04.3]} 12. a5 {[%clk 0:02:02.7]} 12...
Qe7 {[%clk 0:01:55.2]} 13. Nb6 {[%clk 0:02:00.7]} 1-0

[Event "*** SCC Grand Prix: Titled Tuesday Blitz"]
[Site "Chess.com"]
[Date "2020.07.21"]
[Round "2"]
[White "Phriex"]
[Black "j2806"]
[Result "1-0"]
[WhiteElo "2377"]
[BlackElo "2039"]
[TimeControl "180+1"]
[EndTime "10:13:20 PDT"]
[Termination "Phriex won by resignation"]

1. d4 {[%clk 0:03:00.9]} 1... Nf6 {[%clk 0:02:58.5]} 2. c4 {[%clk 0:03:01.4]}
2... e6 {[%clk 0:02:57.3]} 3. Nc3 {[%clk 0:03:02]} 3... d5 {[%clk 0:02:55.6]} 4.
cxd5 {[%clk 0:03:01.8]} 4... exd5 {[%clk 0:02:55.7]} 5. Bg5 {[%clk 0:03:02.4]}
5... Be7 {[%clk 0:02:55.3]} 6. e3 {[%clk 0:03:02.6]} 6... c6 {[%clk 0:02:54.8]}
7. Bd3 {[%clk 0:03:03.1]} 7... Nbd7 {[%clk 0:02:52.4]} 8. Nge2 {[%clk
0:03:03.4]} 8... Nh5 {[%clk 0:02:50.2]} 9. Bxe7 {[%clk 0:03:00.7]} 9... Qxe7
{[%clk 0:02:49.5]} 10. O-O {[%clk 0:03:01.3]} 10... g6 {[%clk 0:02:49.2]} 11.
Re1 {[%clk 0:03:00]} 11... Ndf6 {[%clk 0:02:48.2]} 12. Ng3 {[%clk 0:02:58.7]}
12... Nxg3 {[%clk 0:02:43.5]} 13. hxg3 {[%clk 0:02:58.4]} 13... Ne4 {[%clk
0:02:40.2]} 14. Bxe4 {[%clk 0:02:54.7]} 14... dxe4 {[%clk 0:02:38.7]} 15. Qc2
{[%clk 0:02:49.5]} 15... Bf5 {[%clk 0:02:30]} 16. g4 {[%clk 0:02:45.3]} 16...
Bxg4 {[%clk 0:02:24]} 17. Qxe4 {[%clk 0:02:45.1]} 17... Be6 {[%clk 0:01:53.8]}
18. Rad1 {[%clk 0:02:37.2]} 18... O-O {[%clk 0:01:34.8]} 19. d5 {[%clk
0:02:31.8]} 19... cxd5 {[%clk 0:01:33]} 20. Nxd5 {[%clk 0:02:32.7]} 20... Qf6
{[%clk 0:01:25.1]} 21. Nxf6+ {[%clk 0:02:32.4]} 1-0